bitfinex-derivatives/quotes_SOLF0:USTF0_20250706
["timestamp","ask_amount","ask_price","bid_price","bid_amount"]
[1751841031094,6.5319,153.06,153.03,6.533]
[1751841031495,236.96853556,153.07,153.03,6.533]
[1751841031997,6.34612574,153.06,153.03,6.533]
[1751841032297,236.96853556,153.07,153.03,6.533]
[1751841032490,6.34576926,153.06,153.03,6.533]
[1751841032696,6.5322,153.05,153.03,6.533]
[1751841032998,6.5322,153.05,153.02,6.5333]
[1751841034798,6.5322,153.05,153.02,8.21604095]
[1751841036899,1.68274095,153.03,152.95,1.68274095]
[1751841037100,1.68274095,153.01,152.97,1.68274095]
[1751841037397,189.32,153.02,153.0,1.68274095]
[1751841038696,195.8535,153.02,153.0,1.68274095]
[1751841039599,189.32,153.02,153.0,8.21704095]
[1751841040300,189.32,153.02,153.0,6.5343]
[1751841040899,189.32,153.02,153.0,8.21704095]
[1751841041299,189.32,153.02,153.0,6.5343]
[1751841044207,189.32,153.02,153.01,6.5339]
[1751841046205,191.00274095,153.02,152.92,584.7513937]
[1751841046410,1.68274095,153.01,152.97,1.68274095]
[1751841046910,189.32,153.0,152.99,6.5348]
[1751841047908,1.68274095,153.02,153.01,6.5339]
[1751841048108,190.98274095,153.02,153.01,6.5339]
[1751841050115,1.68274095,153.02,153.01,6.5339]
[1751841050318,191.00274095,153.02,153.01,6.5339]
[1751841051217,9.14050222,153.07,153.01,1.68274095]
[1751841051418,2.36836198,153.06,153.05,1.68274095]
[1751841051612,45.02,153.11,153.05,1.68274095]
[1751841051812,8.10770716,153.1,153.09,6.5305]
[1751841052012,9.14050222,153.14,153.09,1.68274095]
[1751841052217,234.34,153.15,153.13,1.68274095]
[1751841052916,234.34,153.15,153.13,6.5285]
[1751841053113,234.34,153.15,153.12,2.62524282]
[1751841054113,234.34,153.15,153.1,2.62524282]
[1751841055317,234.34,153.15,153.12,9.15404282]
[1751841055517,189.26,153.14,153.12,9.15404282]
[1751841056114,189.26,153.14,153.13,6.5288]
[1751841056517,189.26,153.14,153.12,9.15434282]
[1751841057416,189.26,153.14,153.13,6.5288]
[1751841057821,189.26,153.14,153.12,2.62524282]
[1751841058724,189.26,153.14,153.12,9.15434282]
[1751841060115,189.26,153.14,153.13,6.5288]
[1751841060723,189.26,153.14,153.12,9.15434282]
[1751841060924,189.26,153.14,153.12,2.62524282]
[1751841061419,189.26,153.14,153.13,6.5288]
[1751841061618,189.26,153.14,153.12,2.62524282]
[1751841061619,2.2658,153.18,153.12,2.62524282]
[1751841061816,189.2,153.17,153.14,2.62524282]
[1751841062221,189.2,153.17,153.15,6.5277]
[1751841062422,44.96,153.19,153.16,2.62524282]
[1751841062617,189.2,153.18,153.16,2.62524282]
[1751841064022,189.2,153.18,153.17,6.5271]
[1751841064219,44.96,153.19,153.17,6.5271]
[1751841064425,189.18,153.18,153.16,9.15264282]
[1751841066830,189.18,153.18,153.14,9.15324282]
[1751841067138,189.18,153.18,153.14,2.62524282]
[1751841067329,189.18,153.18,153.15,6.5277]
[1751841067529,189.18,153.18,153.14,2.62524282]
[1751841067730,189.18,153.18,153.16,2.62524282]
[1751841068334,189.18,153.18,153.16,9.15254282]
[1751841068733,189.18,153.18,153.16,2.62524282]
[1751841069534,189.18,153.18,153.16,9.15274282]
[1751841070635,6.5271,153.17,153.11,2.2175]
[1751841070842,189.18,153.18,153.13,2.62524282]
[1751841071032,2.62524282,153.17,153.1,2.62524282]
[1751841071232,6.5281,153.15,153.1,2.62524282]
[1751841071532,189.12,153.14,153.1,2.62524282]
[1751841071734,189.12,153.14,153.11,6.5294]
[1751841071935,189.12,153.14,153.1,2.62524282]
[1751841072239,195.6484,153.14,153.11,6.5296]
[1751841077641,189.12,153.14,153.11,6.5296]
[1751841084746,195.6484,153.14,153.11,6.5296]
[1751841085446,234.06,153.14,153.08,2.62524282]
[1751841085639,2.62524282,153.13,153.02,44.94]
[1751841085845,6.53,153.11,153.07,6.531]
[1751841087446,6.5302,153.1,153.07,6.531]
[1751841087746,2.62524282,153.13,153.08,6.5308]
[1751841088139,9.08127335,153.13,153.08,6.5308]
[1751841088539,6.5299,153.11,153.08,6.5308]
[1751841089247,2.62524282,153.13,153.05,2.62524282]
[1751841089547,6.5304,153.1,153.07,6.5313]
[1751841090145,2.62524282,153.13,153.07,6.5313]
[1751841091048,6.5306,153.09,153.06,6.5316]
[1751841092846,6.5306,153.09,153.03,2.62524282]
[1751841092847,189.14,153.09,153.03,2.62524282]
[1751841093242,234.08,153.09,153.03,2.62524282]
[1751841093753,6.5314,153.07,153.03,2.62524282]
[1751841094245,6.5314,153.07,153.04,6.5324]
[1751841096955,6.5312,153.08,153.05,6.5322]
[1751841099454,234.08,153.09,153.03,2.62524282]
[1751841100553,6.5312,153.08,153.05,6.532]
[1751841109053,240.6106,153.09,153.06,6.5315]
[1751841110357,234.08,153.09,153.07,6.5312]
[1751841110562,189.14,153.1,153.07,2.62524282]
[1751841110757,189.14,153.11,153.07,2.62524282]
[1751841110953,189.14,153.11,153.05,2.62524282]
[1751841111659,6.5308,153.09,153.06,6.5317]
[1751841112056,189.14,153.08,153.06,6.5317]
[1751841113554,195.671,153.08,153.06,6.5317]
[1751841114966,189.14,153.08,153.06,6.5317]
[1751841115164,189.14,153.08,153.05,2.62524282]
[1751841116468,195.6712,153.08,153.05,9.15724282]
[1751841116670,189.14,153.08,153.03,2.62524282]
[1751841117372,6.5316,153.07,153.04,6.5324]
[1751841120871,5.2586302,153.05,152.97,18.15734471]
[1751841121073,2.6293151,152.99,152.88,2.3605]
[1751841121374,2.6293151,152.95,152.88,2.3605]
[1751841121769,14.49038099,152.94,152.88,2.3605]
[1751841121969,6.38529631,152.93,152.88,2.3605]
[1751841122171,6.5375,152.94,152.88,8.9002]
[1751841122372,9.29802029,152.93,152.88,2.3605]
[1751841122672,7.11960494,152.92,152.88,2.3605]
[1751841122874,7.11960494,152.91,152.89,2.6339346]
[1751841123072,49.24,152.98,152.88,4.99251099]
[1751841123277,15.20849834,152.97,152.92,2.63201099]
[1751841123475,7.11875153,152.96,152.92,2.63201099]
[1751841123679,49.24,152.98,152.94,2.63114341]
[1751841123680,7.11875153,152.95,152.94,2.63114341]
[1751841123871,4.41799102,152.95,152.94,2.63114341]
[1751841124075,7.02375403,152.95,152.93,2.63140198]
[1751841124272,49.24,152.98,152.93,2.63140198]
[1751841124273,4.41799102,152.94,152.93,2.63140198]
[1751841124475,4.41799102,152.94,152.9,49.26]
[1751841124676,4.41799102,152.93,152.88,4.99234029]
[1751841124875,4.41799102,152.92,152.88,4.99234029]
[1751841125074,6.5374,152.95,152.89,6.5396]
[1751841125275,4.46277117,152.94,152.89,6.5396]
[1751841125480,6.5374,152.95,152.89,6.5396]
[1751841125680,6.5376,152.94,152.88,11.53234029]
[1751841125876,2.63184029,152.92,152.88,2.3605]
[1751841126084,2.63184029,152.92,152.86,49.26]
[1751841126279,2.63184029,152.9,152.83,4.5309]
[1751841126481,2.63184029,152.9,152.84,2.63184029]
[1751841126671,2.63184029,152.9,152.85,6.5413]
[1751841126872,2.63184029,152.91,152.85,6.5413]
[1751841127474,2.63184029,152.91,152.84,6.5417]
[1751841127681,2.63184029,152.91,152.83,4.5309]
[1751841127876,2.63184029,152.89,152.83,4.5309]
[1751841128582,2.63184029,152.89,152.84,6.5417]
[1751841128782,2.63184029,152.89,152.83,2.2987]
[1751841128980,2.63184029,152.87,152.81,2.3026]
[1751841129780,9.17234029,152.87,152.81,2.3026]
[1751841129979,58.45234029,152.87,152.81,2.3026]
[1751841130182,51.91184029,152.87,152.77,1.1385758]
[1751841130478,2.63184029,152.85,152.78,2.63184029]
[1751841130775,250.38,152.87,152.76,56.2671]
[1751841130776,2.63184029,152.83,152.76,56.2671]
[1751841130981,2.63184029,152.83,152.76,6.9871]
[1751841131379,2.63184029,152.83,152.76,9.61894029]
[1751841131578,2.63184029,152.83,152.76,6.9871]
[1751841131977,2.63184029,152.83,152.76,9.61894029]
[1751841132178,8.7729,152.86,152.81,6.543]
[1751841132382,253.01184029,152.87,152.8,2.63184029]
[1751841132782,259.55264029,152.87,152.83,6.5421]
[1751841133180,253.01184029,152.87,152.83,6.5421]
[1751841133481,253.01184029,152.87,152.82,6.5425]
[1751841134381,2.63184029,152.86,152.82,6.5425]
[1751841135487,2.63184029,152.86,152.83,6.5422]
[1751841135691,259.55264029,152.87,152.83,6.5422]
[1751841136387,6.5409,152.86,152.79,2.63184029]
[1751841137180,6.5409,152.86,152.81,6.543]
[1751841137380,2.63184029,152.85,152.81,6.543]
[1751841137986,2.63184029,152.85,152.78,2.63184029]
[1751841137987,12.181371,152.82,152.78,2.63184029]
[1751841138180,10.48496666,152.81,152.78,2.63184029]
[1751841138385,10.48496666,152.8,152.76,6.9871]
[1751841138581,10.48496666,152.79,152.78,6.5443]
[1751841140894,10.48496666,152.79,152.73,1.13889253]
[1751841141086,10.48496666,152.78,152.69,55.9436]
[1751841141285,10.48496666,152.77,152.71,3.77103107]
[1751841141486,10.48496666,152.76,152.75,6.5452]
[1751841141688,10.48496666,152.76,152.73,2.63184029]
[1751841141988,10.48496666,152.75,152.74,6.5459]
[1751841142291,10.48496666,152.75,152.73,2.63184029]
[1751841142486,2.63184029,152.8,152.73,9.17794029]
[1751841142689,16.37694874,152.79,152.73,2.63184029]
[1751841142889,9.83294874,152.78,152.73,2.63184029]
[1751841143084,9.83294874,152.77,152.71,1.13919078]
[1751841143283,9.83294874,152.76,152.71,3.77103107]
[1751841143481,9.83294874,152.75,152.71,3.77103107]
[1751841143687,6.5444,152.78,152.71,3.77103107]
[1751841143888,9.83073452,152.77,152.71,3.77103107]
[1751841144083,9.83073452,152.76,152.73,2.63184029]
[1751841144288,9.83073452,152.75,152.72,2.63184029]
[1751841144493,6.5442,152.79,152.75,6.5455]
[1751841144694,9.82917273,152.78,152.75,6.5455]
[1751841144893,9.82917273,152.77,152.75,6.5455]
[1751841145093,9.82917273,152.76,152.72,2.63184029]
[1751841145294,9.82917273,152.75,152.72,2.63184029]
[1751841145593,2.63184029,152.79,152.74,6.5458]
[1751841145891,9.82822719,152.78,152.74,6.5458]
[1751841146195,9.82822719,152.77,152.74,6.5458]
[1751841146394,9.82822719,152.76,152.74,6.5458]
[1751841146598,9.82822719,152.75,152.74,6.5458]
[1751841148994,49.32,152.82,152.74,2.63184029]
[1751841149186,6.93486404,152.81,152.74,2.63184029]
[1751841149390,4.30302375,152.8,152.74,2.63184029]
[1751841149587,6.5438,152.8,152.76,6.5449]
[1751841149793,9.58680864,152.79,152.76,6.5449]
[1751841149993,9.58680864,152.78,152.76,6.5449]
[1751841150193,9.58680864,152.77,152.76,6.5449]
[1751841150890,9.58680864,152.77,152.75,6.5455]
[1751841151090,9.58680864,152.76,152.72,2.63184029]
[1751841151294,2.63184029,152.79,152.72,2.63184029]
[1751841151495,9.59110262,152.78,152.75,6.5454]
[1751841151696,9.59110262,152.77,152.72,2.63184029]
[1751841151896,9.59110262,152.76,152.73,2.63184029]
[1751841152096,9.59110262,152.75,152.74,6.5461]
[1751841155294,18.58496788,152.75,152.74,6.5461]
[1751841155599,9.59110262,152.75,152.74,6.5461]
[1751841156317,18.58496788,152.75,152.74,6.5461]
[1751841158299,9.59110262,152.75,152.74,6.5461]
[1751841158903,18.61960234,152.75,152.74,6.5461]
[1751841159503,9.59110262,152.75,152.74,6.5461]
[1751841160496,21.58292296,152.75,152.74,6.5461]
[1751841160898,9.59110262,152.75,152.74,6.5461]
[1751841161201,21.58292296,152.75,152.74,6.5461]
[1751841162497,13.88903217,152.75,152.74,9.17794029]
[1751841162698,13.88903217,152.75,152.74,2.63184029]
[1751841163000,9.59110262,152.75,152.74,2.63184029]
[1751841163197,5.49754776,152.76,152.74,2.63184029]
[1751841163498,12.0992366,152.79,152.75,2.63184029]
[1751841163703,12.0992366,152.8,152.78,2.63184029]
[1751841163899,55.863,152.82,152.78,2.63184029]
[1751841164207,4.09848532,152.81,152.78,2.63184029]
[1751841164402,4.09848532,152.8,152.78,2.63184029]
[1751841164602,4.09848532,152.79,152.78,2.63184029]
[1751841165204,4.09848532,152.79,152.78,9.17594029]
[1751841166101,6.5431,152.81,152.78,9.17594029]
[1751841166298,4.12997772,152.8,152.78,9.17594029]
[1751841166603,4.12997772,152.79,152.78,9.17594029]
[1751841166807,4.13045026,152.79,152.78,6.5441]
[1751841168000,4.13045026,152.79,152.78,15.27948008]
[1751841170305,55.8628,152.82,152.78,15.27948008]
[1751841170505,55.8628,152.82,152.8,12.13942579]
[1751841170704,55.8628,152.82,152.81,8.73538008]
[1751841170905,58.22701061,152.82,152.81,8.73538008]
[1751841171408,51.68421061,152.82,152.81,9.11128378]
[1751841171799,51.68421061,152.82,152.78,12.13942579]
[1751841172002,2.36421061,152.81,152.78,18.68362579]
[1751841172203,2.36421061,152.8,152.78,18.68362579]
[1751841172400,6.5436,152.8,152.78,12.13942579]
[1751841172605,6.5436,152.8,152.79,18.15593949]
[1751841172808,8.91147032,152.8,152.79,18.15593949]
[1751841173404,8.91147032,152.8,152.78,24.70013949]
[1751841173604,6.5436,152.8,152.78,24.70013949]
[1751841174101,2.37020472,152.79,152.78,18.15593949]
[1751841174808,2.37020472,152.79,152.78,24.70023949]
[1751841175010,2.37020472,152.79,152.78,6.5443]
[1751841175312,2.37020472,152.79,152.78,24.78073361]
[1751841175607,2.37364165,152.79,152.78,18.23643361]
[1751841176310,2.63184029,152.81,152.77,24.78103361]
[1751841176510,6.5439,152.79,152.77,24.78103361]
[1751841176706,2.63184029,152.81,152.77,24.78103361]
[1751841176906,2.36764555,152.8,152.77,24.78103361]
[1751841177201,2.36765254,152.79,152.77,24.78103361]
[1751841177407,6.5437,152.8,152.77,24.78103361]
[1751841177605,2.36837953,152.79,152.77,24.78103361]
[1751841177811,6.5437,152.8,152.77,24.78103361]
[1751841178008,6.5437,152.8,152.79,12.1666082]
[1751841178205,8.91208008,152.8,152.79,12.1666082]
[1751841179208,6.5439,152.79,152.78,12.1666082]
[1751841179409,2.63184029,152.81,152.78,12.1666082]
[1751841179608,2.63184029,152.81,152.8,9.12992345]
[1751841180207,49.32,152.82,152.79,12.1666082]
[1751841180409,49.32,152.82,152.8,12.1666082]
[1751841180808,49.32,152.82,152.8,18.7100082]
[1751841181011,49.32,152.82,152.8,12.1666082]
[1751841181302,49.32,152.82,152.81,12.1666082]
[1751841181508,253.55274029,152.86,152.81,12.1666082]
[1751841181812,253.55274029,152.86,152.83,9.13257392]
[1751841182111,6.5418,152.84,152.83,9.13257392]
[1751841183211,6.5418,152.84,152.83,17.82229312]
[1751841186113,766.29,152.87,152.83,20.8563274]
[1751841186316,767.23184029,152.87,152.85,9.13662884]
[1751841186517,773.77234029,152.87,152.86,8.6897192]
[1751841187312,773.77234029,152.87,152.84,9.13662884]
[1751841187619,6.5413,152.85,152.84,9.13662884]
[1751841187916,6.5413,152.85,152.8,12.1666082]
[1751841187917,6.5425,152.83,152.8,12.1666082]
[1751841188210,6.5425,152.83,152.81,12.1666082]
[1751841188616,2.63184029,152.85,152.81,12.1666082]
[1751841189117,6.5425,152.83,152.8,6.5432]
[1751841190221,764.6,152.87,152.8,6.5432]
[1751841190422,2.63184029,152.86,152.8,18.7098082]
[1751841190721,6.5424,152.83,152.8,18.7098082]
[1751841193025,2.63184029,152.86,152.8,12.1666082]
[1751841193322,2.63184029,152.85,152.79,12.1666082]
[1751841194325,6.5424,152.83,152.8,6.5432]
[1751841194925,2.63184029,152.85,152.79,12.1666082]
[1751841195225,2.63184029,152.83,152.77,12.1666082]
[1751841195427,2.63184029,152.83,152.76,2.63184029]
[1751841195428,2.63184029,152.81,152.76,12.1666082]
[1751841195621,6.544,152.79,152.76,18.7115082]
[1751841195823,2.63184029,152.79,152.74,12.1666082]
[1751841196126,6.5447,152.78,152.75,12.1666082]
[1751841197119,6.5447,152.78,152.75,18.7122082]
[1751841197321,9.17584029,152.79,152.75,12.1666082]
[1751841197515,198.78,152.82,152.75,12.1666082]
[1751841197722,2.63184029,152.81,152.75,12.1666082]
[1751841197922,6.5443,152.79,152.76,6.5451]
[1751841198120,2.63184029,152.81,152.74,12.1666082]
[1751841198628,6.5443,152.79,152.75,6.5452]
[1751841198924,2.63184029,152.81,152.75,6.5452]
[1751841199529,2.63184029,152.81,152.76,6.5452]
[1751841199921,6.5442,152.79,152.76,6.5452]
[1751841203230,6.5436,152.8,152.77,6.5447]
[1751841203622,201.41184029,152.82,152.75,12.1666082]
[1751841203931,51.39184029,152.83,152.76,2.63184029]
[1751841204223,48.76,152.83,152.78,2.63184029]
[1751841204524,48.76,152.83,152.79,12.1666082]
[1751841205625,55.3022,152.83,152.8,6.5432]
[1751841206128,55.3022,152.83,152.79,18.7104082]
[1751841206723,55.3022,152.83,152.79,12.1666082]
[1751841207235,48.76,152.83,152.79,12.1666082]
[1751841207829,48.76,152.83,152.8,6.5431]
[1751841210728,48.76,152.83,152.81,6.5429]
[1751841210932,6.542,152.84,152.81,6.5429]
[1751841211124,6.542,152.84,152.79,12.1666082]
[1751841211326,6.542,152.84,152.8,6.5432]
[1751841213031,6.542,152.84,152.81,6.543]
[1751841213332,197.72,152.85,152.79,12.1666082]
[1751841213633,2.63184029,152.83,152.78,6.544]
[1751841213837,6.5425,152.83,152.77,14.79844849]
[1751841214021,201.55184029,152.83,152.77,6.5446]
[1751841214426,6.5434,152.81,152.77,6.5446]
[1751841218631,198.92,152.83,152.76,16.7866082]
[1751841218937,2.63184029,152.79,152.74,12.1666082]
[1751841219324,9.17604029,152.79,152.75,6.5455]
[1751841222537,6.5442,152.79,152.76,6.5451]
[1751841223137,9.17544029,152.8,152.77,6.5447]
[1751841223335,6.5436,152.8,152.77,6.5447]
[1751841225437,54.5632,152.81,152.77,6.5447]
[1751841226539,48.02,152.81,152.74,12.1666082]
[1751841226839,50.65184029,152.81,152.74,12.1666082]
[1751841227038,6.544,152.79,152.76,6.5449]
[1751841230242,6.5437,152.8,152.77,6.5447]
[1751841230540,50.65184029,152.81,152.77,6.5447]
[1751841230734,50.65184029,152.81,152.75,2.63184029]
[1751841230930,48.02,152.81,152.74,12.1666082]
[1751841231138,48.02,152.81,152.74,14.79844849]
[1751841231340,50.65184029,152.81,152.74,14.79844849]
[1751841231542,6.5436,152.8,152.76,6.5449]
[1751841235743,6.544,152.79,152.76,6.5449]
[1751841236645,6.5437,152.8,152.77,6.5448]
[1751841239247,6.5441,152.79,152.76,6.5449]
[1751841239641,6.5441,152.79,152.74,14.79844849]
[1751841240646,6.5441,152.79,152.76,6.5449]
[1751841241646,6.5444,152.78,152.75,6.5454]
[1751841242141,6.5444,152.78,152.74,14.79844849]
[1751841242547,6.5444,152.78,152.75,6.5455]
[1751841247752,6.5444,152.78,152.76,6.5451]
[1751841247946,48.02,152.81,152.76,9.10886544]
[1751841248347,6.5442,152.79,152.76,15.65376544]
[1751841249349,6.5447,152.78,152.76,9.10886544]
[1751841253054,6.5447,152.78,152.75,9.10886544]
[1751841253055,6.5448,152.77,152.75,9.10886544]
[1751841253257,48.02,152.81,152.75,9.10886544]
[1751841253457,50.65184029,152.81,152.75,9.10886544]
[1751841253647,6.5442,152.79,152.76,6.545]
[1751841254859,8.23282205,152.79,152.76,6.545]
[1751841257264,6.5442,152.79,152.76,6.545]
[1751841257460,8.23232205,152.8,152.77,6.5446]
[1751841257866,48.6,152.85,152.79,1.68795072]
[1751841258064,1.68756475,152.8,152.77,9.10886544]
[1751841258263,1.68756475,152.8,152.77,9.12179694]
[1751841258464,6.544,152.79,152.77,9.12179694]
[1751841259565,6.544,152.79,152.77,15.66659694]
[1751841260668,8.23126475,152.8,152.77,15.66659694]
[1751841261366,8.23126475,152.8,152.78,6.5443]
[1751841261568,8.23126475,152.8,152.77,10.80893071]
[1751841262369,8.23126475,152.8,152.77,17.35343071]
[1751841262669,6.5437,152.8,152.77,17.35343071]
[1751841263370,6.5439,152.79,152.78,9.12136596]
[1751841266674,6.5439,152.79,152.76,17.35393071]
[1751841267675,6.5446,152.78,152.76,9.12136596]
[1751841269466,6.5448,152.77,152.76,9.12136596]
[1751841269665,8.23236475,152.77,152.74,9.12136596]
[1751841269872,1.68756475,152.75,152.74,9.12136596]
[1751841270073,1.68756475,152.75,152.73,9.12136596]
[1751841270473,1.68756475,152.76,152.73,9.12136596]
[1751841271178,1.68756475,152.76,152.7,12.1666082]
[1751841271380,1.68756475,152.76,152.72,1.68756475]
[1751841272178,1.68756475,152.76,152.73,6.5465]
[1751841272575,8.23296475,152.76,152.73,6.5465]
[1751841273680,6.5457,152.75,152.73,6.5465]
[1751841273881,6.5457,152.75,152.72,8.23436475]
[1751841274380,6.5457,152.75,152.72,6.5468]
[1751841274579,6.5457,152.75,152.72,8.23436475]
[1751841274781,6.5457,152.75,152.72,6.5468]
[1751841274977,6.5457,152.75,152.72,8.23436475]
[1751841275680,6.5457,152.75,152.72,6.5468]
[1751841275879,6.5457,152.75,152.72,8.23436475]
[1751841276078,8.23326475,152.75,152.72,8.23436475]
[1751841276276,8.23326475,152.75,152.72,6.5468]
[1751841276578,8.23286475,152.76,152.73,6.5464]
[1751841276978,1.68756475,152.76,152.72,1.68756475]
[1751841277380,6.5457,152.75,152.72,8.23426475]
[1751841277983,8.23296475,152.76,152.73,6.5465]
[1751841279779,6.5454,152.76,152.73,6.5465]
[1751841279980,8.23296475,152.76,152.73,6.5465]
[1751841281286,6.5457,152.75,152.73,6.5465]
[1751841282084,6.5457,152.75,152.72,8.23436475]
[1751841282385,6.5457,152.75,152.72,1.68756475]
[1751841283186,6.5457,152.75,152.72,8.23416475]
[1751841285186,6.5455,152.76,152.73,6.5464]
[1751841285387,8.23306475,152.76,152.73,6.5464]
[1751841285588,1.68756475,152.76,152.72,1.68756475]
[1751841286188,6.5459,152.75,152.72,8.23426475]
[1751841286589,1.68756475,152.76,152.72,6.5467]
[1751841286789,1.68756475,152.75,152.72,6.5467]
[1751841287580,8.23366475,152.75,152.72,6.5467]
[1751841287886,1.68756475,152.75,152.71,1.68756475]
[1751841288086,8.23426475,152.73,152.68,1.68756475]
[1751841288290,8.23426475,152.73,152.69,1.68756475]
[1751841288489,6.5467,152.73,152.69,1.68756475]
[1751841288691,6.5467,152.73,152.7,8.23506475]
[1751841289098,6.5462,152.74,152.71,8.23466475]
[1751841289395,1.68756475,152.75,152.71,1.68756475]
[1751841289594,6.5466,152.73,152.7,8.23506475]
[1751841289895,1.68756475,152.74,152.7,1.68756475]
[1751841290097,6.5465,152.73,152.7,1.68756475]
[1751841290293,1.68756475,152.74,152.7,1.68756475]
[1751841290693,1.68756475,152.75,152.71,1.68756475]
[1751841291201,48.1,152.78,152.71,1.68756475]
[1751841291401,1.68756475,152.76,152.72,1.68756475]
[1751841291696,1.68756475,152.75,152.72,6.5467]
[1751841291897,8.23346475,152.75,152.72,6.5467]
[1751841294494,1.68756475,152.75,152.73,6.5464]
[1751841294695,8.23296475,152.76,152.73,6.5464]
[1751841294896,1.68756475,152.76,152.73,6.5464]
[1751841295092,1.68756475,152.75,152.72,6.5467]
[1751841295493,6.5461,152.74,152.71,6.5472]
[1751841297800,8.23366475,152.74,152.71,6.5472]
[1751841297996,1.68756475,152.72,152.68,1.68756475]
[1751841298197,1.68756475,152.71,152.67,3.36313401]
[1751841299396,1.68756475,152.71,152.69,6.5482]
[1751841299892,8.23476475,152.72,152.69,6.5482]
[1751841300696,6.5472,152.72,152.7,6.5477]
[1751841300901,1.68756475,152.73,152.7,6.5477]
[1751841301199,1.68756475,152.75,152.67,1.67556926]
[1751841301402,6.5464,152.74,152.7,8.23496475]
[1751841301598,8.23396475,152.74,152.67,1.67556926]
[1751841301795,1.68756475,152.71,152.68,1.68756475]
[1751841301995,1.68756475,152.71,152.67,3.36313401]
[1751841302404,1.68756475,152.71,152.69,6.5482]
[1751841302799,8.23476475,152.72,152.69,6.5482]
[1751841304509,1.68756475,152.74,152.69,1.68756475]
[1751841305101,6.5468,152.73,152.7,6.5476]
[1751841307008,8.23436475,152.73,152.7,6.5476]
[1751841308408,8.23672967,152.73,152.7,6.5476]
[1751841310610,6.5472,152.72,152.69,6.5479]
[1751841311309,8.23652967,152.73,152.7,6.5476]
[1751841315411,195.22,152.77,152.7,1.68992956]
[1751841315612,1.68992956,152.75,152.7,1.68992956]
[1751841316212,6.5465,152.73,152.67,1.67556926]
[1751841316410,8.23642956,152.73,152.69,1.68992956]
[1751841316610,6.5465,152.73,152.69,1.68992956]
[1751841316812,8.23632956,152.74,152.71,6.5472]
[1751841328418,6.5465,152.73,152.71,6.5472]
[1751841329920,53.8858,152.75,152.72,6.5467]
[1751841330113,53.8858,152.75,152.69,1.68992956]
[1751841330114,47.34,152.75,152.74,1.68862883]
[1751841330313,47.34,152.79,152.74,1.68862883]
[1751841330518,55.57252883,152.79,152.76,6.5451]
[1751841330819,9.17203751,152.82,152.71,16.6715082]
[1751841330820,56.51203751,152.82,152.71,16.6715082]
[1751841331019,6.5435,152.8,152.75,6.5456]
[1751841331221,6.5435,152.8,152.73,12.1666082]
[1751841331422,1.68862883,152.78,152.75,1.68862883]
[1751841331619,47.34,152.82,152.74,1.68862883]
[1751841331918,1.68862883,152.78,152.74,1.68862883]
[1751841332321,1.68862883,152.78,152.75,6.5456]
[1751841333122,1.68862883,152.78,152.75,8.23422883]
[1751841333824,8.23302883,152.78,152.74,8.23462883]
[1751841335127,6.5455,152.76,152.72,2.1459]
[1751841335324,4.5863,152.81,152.71,4.5049]
[1751841335621,1.68862883,152.76,152.72,1.68862883]
[1751841335926,1.68862883,152.77,152.74,1.68862883]
[1751841336625,8.23342883,152.77,152.74,1.68862883]
[1751841336822,6.5448,152.77,152.74,1.68862883]
[1751841337026,1.68862883,152.78,152.75,1.68862883]
[1751841338328,1.68862883,152.8,152.76,1.68862883]
[1751841338825,8.23212883,152.8,152.76,8.23352883]
[1751841339423,6.5439,152.79,152.76,8.23352883]
[1751841340328,8.23252883,152.79,152.76,8.23352883]
[1751841341735,8.23252883,152.79,152.76,6.5449]
[1751841342032,8.23252883,152.79,152.76,8.23352883]
[1751841342234,8.23252883,152.79,152.76,6.5449]
[1751841342531,8.23252883,152.79,152.76,8.23352883]
[1751841345831,6.5439,152.79,152.76,8.23352883]
[1751841347033,206.15222883,152.8,152.77,6.5448]
[1751841347237,199.60862883,152.8,152.76,1.68862883]
[1751841347835,6.544,152.79,152.76,8.23362883]
[1751841348133,47.34,152.82,152.79,6.5439]
[1751841348329,49.02862883,152.82,152.78,1.68862883]
[1751841348525,246.82862883,152.82,152.78,1.68862883]
[1751841348724,6.5433,152.81,152.78,8.23282883]
[1751841353538,204.1233,152.81,152.78,8.23282883]
[1751841354440,199.26862883,152.81,152.77,1.68862883]
[1751841354643,199.26862883,152.81,152.76,1.68862883]